Workbook

Sheet 4_weekly_Budget
B2: N4 Lifeskills - (4 weekly) Budget Created by Mr.Lafferty@mathsrevision.com
C8: ="Q1. Abbi wants to get new triple glazing for her whole house and need to work out how much she can afford. She gets paid 4 weekly and decides to work out a budget." -> Q1. Abbi wants to get new triple glazing for her whole house and need to work out how much she can afford. She gets paid 4 weekly and decides to work out a budget.
C10: =" Fill in the missing information." -> Fill in the missing information.
C12: Income | N12: Cost | Q12: Expenditure | Z12: Cost | AZ12: Income | BA12: Expenditure
C13: Wages | N13: =AZ13 -> 1150 | Q13: Gas | Z13: =BA13 -> 74 | AZ13: =ROUND(RAND()*(120-75)+75,0)*10 -> 1150 | BA13: =ROUND(RAND()*(90-55)+55,0) -> 74
C14: ="Child Benefit £"&TEXT(AX14,"0.00")&" per week" -> Child Benefit £32.60 per week | Q14: Electric | Z14: =BA14 -> 53 | AX14: =ROUND(RAND()*(49-28)+28,1) -> 32.6 | AZ14: =AX14*4 -> 130.4 | BA14: =ROUND(RAND()*(65-40)+40,0) -> 53
C15: ="Child Tax Credit £"&TEXT(AX15,"0.00")&" per week" -> Child Tax Credit £144.60 per week | Q15: Food | AC15: ="(Weekly food bill £"&BB15&".)" -> (Weekly food bill £83.) | AX15: =ROUND(RAND()*(149-115)+115,1) -> 144.6 | AZ15: =AX15*4 -> 578.4 | BA15: =4*BB15 -> 332 | BB15: =ROUND(RAND()*(95-70)+70,0) -> 83
C16: ="Working Tax Credit £"&TEXT(AX16,"0.00")&" per week" -> Working Tax Credit £89.85 per week | Q16: Rent | Z16: 361 | AX16: =ROUND(RAND()*(99-55)+55,2) -> 89.85 | AZ16: =AX16*4 -> 359.4 | BA16: =ROUND(RAND()*(400-300)+300,0) -> 361
Q17: Credit Card | Z17: 140 | BA17: =ROUND(RAND()*(150-99)+99,0) -> 140
Q18: Car Loan | Z18: 249 | BA18: =ROUND(RAND()*(250-180)+180,0) -> 249
Q19: Clothes | Z19: 73 | BA19: =ROUND(RAND()*(90-55)+55,0) -> 73
Q20: Mobile Phone | Z20: 31 | BA20: =ROUND(RAND()*(60-25)+25,0) -> 31
Q21: TV Licence | Z21: 18 | BA21: =ROUND(RAND()*(20-13)+13,0) -> 18
Q22: Fuel | Z22: 152 | BA22: =ROUND(RAND()*(160-80)+80,0) -> 152
Q23: Car Insurance | Z23: 59 | BA23: =ROUND(RAND()*(70-40)+40,0) -> 59
H24: Income Total | T24: Expenditure Total | AZ24: =SUM(AZ13:AZ16) -> 2218.2 | BA24: =SUM(BA13:BA23) -> 1542
C27: (b) How much can Abbi save each 4 weeks ? | AZ27: =AZ24-BA24 -> 676.2
AZ30: =ROUND(RAND()*(3-1)+1,0) -> 2 | BA30: =IF($AZ$30=2,1,IF($AZ$30=1,3,2)) -> 1 | BB30: =IF(BA30=1,4,IF(BA30=2,3,2)) -> 4 | BC30: =IF(BA30=1,ROUNDDOWN(AZ27*0.8,0),IF(BA30=2,ROUNDDOWN(AZ27+ROUND(RAND()*(70-30)+30,0),0),ROUNDDOWN(AZ27,0))) -> 540 | BD30: =13*BB30*BC30 -> 28080 | BE30: 1
C31: (c) She considers three deals. Which deal is the most appropriate for her. | Z31: Deal = | BA31: =IF($AZ$30=1,1,IF($AZ$30=2,2,3)) -> 2 | BB31: =IF(BA31=1,4,IF(BA31=2,3,2)) -> 3 | BC31: =IF(BA31=1,ROUNDDOWN(AZ27*0.8,0),IF(BA31=2,ROUNDDOWN(AZ27+ROUND(RAND()*(70-30)+30,0),0),ROUNDDOWN(AZ27,0))) -> 716 | BD31: =13*BB31*BC31 -> 27924 | BE31: 2
BA32: =IF($AZ$30=3,1,IF($AZ$30=2,3,2)) -> 3 | BB32: =IF(BA32=1,4,IF(BA32=2,3,2)) -> 2 | BC32: =IF(BA32=1,ROUNDDOWN(AZ27*0.8,0),IF(BA32=2,ROUNDDOWN(AZ27+ROUND(RAND()*(70-30)+30,0),0),ROUNDDOWN(AZ27,0))) -> 676 | BD32: 17576 | BE32: 3
C34: Deal 1 | O34: Deal 2 | AA34: Deal 3 | AZ34: 1 | BA34: =BA30 -> 1 | BB34: =BB30 -> 4 | BC34: 540 | BD34: 28080 | BE34: 1
BA35: =BA31 -> 2 | BB35: 3 | BC35: 716 | BD35: 27924 | BE35: 2
D36: =" £"&TEXT(BD30,0)&" over "&BB30&" years" -> £28080 over 4 years | P36: =" £"&TEXT(BD31,0)&" over "&BB31&" years" -> £27924 over 3 years | AB36: =" £"&TEXT(BD32,0)&" over "&BB32&" years" -> £17576 over 2 years | BA36: =BA32 -> 3 | BB36: 2 | BC36: 676 | BD36: 17576 | BE36: 3
AZ37: =IF(BA34=1,BE34,IF(BA35=1,BE35,IF(BA36=1,3,0))) -> 1
C40: ="Q2. Josh wants to get a new roof for his house and need to work out how much he can afford. He gets paid 4 weekly and decides to work out a budget." -> Q2. Josh wants to get a new roof for his house and need to work out how much he can afford. He gets paid 4 weekly and decides to work out a budget.
C42: =" Fill in the missing information." -> Fill in the missing information.
C44: Income | N44: Cost | Q44: Expenditure | Z44: Cost | AZ44: Income | BA44: Expenditure
C45: Wages | N45: =AZ45 -> 1100 | Q45: Gas | Z45: =BA45 -> 87 | AZ45: =ROUND(RAND()*(120-75)+75,0)*10 -> 1100 | BA45: =ROUND(RAND()*(90-55)+55,0) -> 87
C46: ="Child Benefit £"&TEXT(AX46,"0.00")&" per week" -> Child Benefit £32.60 per week | Q46: Electric | Z46: =BA46 -> 62 | AX46: =ROUND(RAND()*(49-28)+28,1) -> 32.6 | AZ46: =AX46*4 -> 130.4 | BA46: =ROUND(RAND()*(65-40)+40,0) -> 62
C47: ="Child Tax Credit £"&TEXT(AX47,"0.00")&" per week" -> Child Tax Credit £134.70 per week | Q47: Food | AC47: ="(Weekly food bill £"&BB47&".)" -> (Weekly food bill £86.) | AX47: =ROUND(RAND()*(149-115)+115,1) -> 134.7 | AZ47: =AX47*4 -> 538.8 | BA47: =4*BB47 -> 344 | BB47: =ROUND(RAND()*(95-70)+70,0) -> 86
C48: ="Working Tax Credit £"&TEXT(AX48,"0.00")&" per week" -> Working Tax Credit £81.32 per week | Q48: Rent | Z48: =BA48 -> 335 | AX48: =ROUND(RAND()*(99-55)+55,2) -> 81.32 | AZ48: =AX48*4 -> 325.28 | BA48: =ROUND(RAND()*(400-300)+300,0) -> 335
Q49: Credit Card | Z49: 110 | BA49: =ROUND(RAND()*(150-99)+99,0) -> 110
Q50: Car Loan | Z50: 220 | BA50: =ROUND(RAND()*(250-180)+180,0) -> 220
Q51: Clothes | Z51: 68 | BA51: =ROUND(RAND()*(90-55)+55,0) -> 68
Q52: Mobile Phone | Z52: 28 | BA52: =ROUND(RAND()*(60-25)+25,0) -> 28
Q53: TV Licence | Z53: 16 | BA53: =ROUND(RAND()*(20-13)+13,0) -> 16
Q54: Fuel | Z54: 101 | BA54: =ROUND(RAND()*(160-80)+80,0) -> 101
Q55: Car Insurance | Z55: 52 | BA55: =ROUND(RAND()*(70-40)+40,0) -> 52
H56: Income Total | T56: Expenditure Total | AZ56: =SUM(AZ45:AZ48) -> 2094.48 | BA56: =SUM(BA45:BA55) -> 1423
C59: (b) How much can Abbi save each 4 weeks ? | AZ59: =AZ56-BA56 -> 671.48
AZ62: =ROUND(RAND()*(3-1)+1,0) -> 2 | BA62: =IF($AZ$30=2,1,IF($AZ$30=1,3,2)) -> 1 | BB62: =IF(BA62=1,4,IF(BA62=2,3,2)) -> 4 | BC62: =IF(BA62=1,ROUNDDOWN(AZ59*0.8,0),IF(BA62=2,ROUNDDOWN(AZ59+ROUND(RAND()*(70-30)+30,0),0),ROUNDDOWN(AZ59,0))) -> 537 | BD62: =13*BB62*BC62 -> 27924 | BE62: 1
C63: (c) She considers three deals. Which deal is the most appropriate for her. | Z63: Deal = | BA63: =IF($AZ$30=1,1,IF($AZ$30=2,2,3)) -> 2 | BB63: =IF(BA63=1,4,IF(BA63=2,3,2)) -> 3 | BC63: =IF(BA63=1,ROUNDDOWN(AZ59*0.8,0),IF(BA63=2,ROUNDDOWN(AZ59+ROUND(RAND()*(70-30)+30,0),0),ROUNDDOWN(AZ59,0))) -> 705 | BD63: =13*BB63*BC63 -> 27495 | BE63: 2
BA64: =IF($AZ$30=3,1,IF($AZ$30=2,3,2)) -> 3 | BB64: =IF(BA64=1,4,IF(BA64=2,3,2)) -> 2 | BC64: =IF(BA64=1,ROUNDDOWN(AZ59*0.8,0),IF(BA64=2,ROUNDDOWN(AZ59+ROUND(RAND()*(70-30)+30,0),0),ROUNDDOWN(AZ59,0))) -> 671 | BD64: 17446 | BE64: 3
C66: Deal 1 | O66: Deal 2 | AA66: Deal 3 | AZ66: 1 | BA66: =BA62 -> 1 | BB66: =BB62 -> 4 | BC66: 537 | BD66: 27924 | BE66: 1
BA67: =BA63 -> 2 | BB67: 3 | BC67: 705 | BD67: 27495 | BE67: 2
D68: =" £"&TEXT(BD62,0)&" over "&BB62&" years" -> £27924 over 4 years | P68: =" £"&TEXT(BD63,0)&" over "&BB63&" years" -> £27495 over 3 years | AB68: =" £"&TEXT(BD64,0)&" over "&BB64&" years" -> £17446 over 2 years | BA68: =BA64 -> 3 | BB68: 2 | BC68: 671 | BD68: 17446 | BE68: 3
AZ69: =IF(BA66=1,BE66,IF(BA67=1,BE67,IF(BA68=1,3,0))) -> 1
